[Event "SS Manhem Chess Week 2022: IM Tournament"]
[Site "Schackcentrum, Vegagatan 20, Gothenburg, Sweden"]
[Date "2022.08.12"]
[Round "9.5"]
[White "Olsson, William"]
[Black "Johnson, Daniel"]
[Result "1-0"]
[TimeControl "90 minutes for 40 moves + 30 minutes for the rest of the game + 30 seconds per move from move one."]
[WhiteTitle "FM"]
[WhiteFideId "1741721"]
[BlackFideId "1721283"]
[WhiteElo "2311"]
[BlackElo "2207"]

1. c4 {[%clk 01:30:57]} {[%emt 00:00:04]} e6 {[%clk 01:30:28]} {[%emt
00:00:27]} 2. Nf3 {[%clk 01:31:23]} {[%emt 00:00:07]} d5 {[%clk 01:30:55]}
{[%emt 00:00:03]} 3. g3 {[%clk 01:31:49]} {[%emt 00:00:05]} Nf6 {[%clk
01:31:20]} {[%emt 00:00:04]} 4. Bg2 {[%clk 01:32:15]} {[%emt 00:00:03]} Be7
{[%clk 01:31:46]} {[%emt 00:00:05]} 5. O-O {[%clk 01:32:40]} {[%emt 00:00:05]}
O-O {[%clk 01:32:12]} {[%emt 00:00:04]} 6. b3 {[%clk 01:33:08]} {[%emt
00:00:02]} d4 {[%clk 01:32:38]} {[%emt 00:00:04]} 7. e3 {[%clk 01:33:29]}
{[%emt 00:00:10]} c5 {[%clk 01:32:51]} {[%emt 00:00:17]} 8. Ne5 {[%clk
01:33:47]} {[%emt 00:00:12]} Qc7 {[%clk 01:32:19]} {[%emt 00:01:01]} 9. f4
{[%clk 01:34:07]} {[%emt 00:00:10]} Nfd7 {[%clk 01:31:27]} {[%emt 00:01:23]} 10.
exd4 {[%clk 01:34:27]} {[%emt 00:00:10]} cxd4 {[%clk 01:31:49]} {[%emt
00:00:07]} 11. Nf3 {[%clk 01:34:18]} {[%emt 00:00:39]} Nc6 {[%clk 01:31:47]}
{[%emt 00:00:32]} 12. Bb2 {[%clk 01:34:35]} {[%emt 00:00:13]} Rd8 {[%clk
01:29:10]} {[%emt 00:03:07]} 13. d3 {[%clk 01:34:57]} {[%emt 00:00:08]} Nc5
{[%clk 01:28:15]} {[%emt 00:01:25]} 14. Qe2 {[%clk 01:29:21]} {[%emt 00:06:07]}
Bf6 {[%clk 01:15:09]} {[%emt 00:13:35]} 15. Nbd2 {[%clk 01:24:16]} {[%emt
00:05:36]} b6 {[%clk 01:12:12]} {[%emt 00:03:26]} 16. Ne4 {[%clk 01:20:49]}
{[%emt 00:03:57]} Nxe4 {[%clk 01:07:13]} {[%emt 00:05:29]} 17. Qxe4 {[%clk
01:21:02]} {[%emt 00:00:17]} Bb7 {[%clk 01:01:42]} {[%emt 00:06:01]} 18. Nd2
{[%clk 01:17:46]} {[%emt 00:03:47]} Rab8 {[%clk 00:46:13]} {[%emt 00:15:58]} 19.
Qe2 {[%clk 01:16:52]} {[%emt 00:01:23]} Ne7 {[%clk 00:40:25]} {[%emt 00:06:18]}
20. Bxb7 {[%clk 01:08:19]} {[%emt 00:09:03]} Qxb7 {[%clk 00:39:11]} {[%emt
00:01:44]} 21. Ne4 {[%clk 01:08:34]} {[%emt 00:00:15]} Nf5 {[%clk 00:38:22]}
{[%emt 00:01:18]} 22. Nxf6+ {[%clk 01:07:02]} {[%emt 00:02:02]} gxf6 {[%clk
00:38:45]} {[%emt 00:00:07]} 23. Rf3 {[%clk 01:06:23]} {[%emt 00:01:09]} b5
{[%clk 00:26:52]} {[%emt 00:12:23]} 24. c5 {[%clk 00:58:38]} {[%emt 00:08:16]}
Rd5 {[%clk 00:26:16]} {[%emt 00:01:05]} 25. b4 {[%clk 00:58:55]} {[%emt
00:00:13]} Kh8 {[%clk 00:24:43]} {[%emt 00:02:03]} 26. Qe4 {[%clk 00:56:13]}
{[%emt 00:03:12]} Qd7 {[%clk 00:23:17]} {[%emt 00:01:55]} 27. Rc1 {[%clk
00:53:25]} {[%emt 00:03:18]} Ne7 {[%clk 00:20:42]} {[%emt 00:03:05]} 28. a3
{[%clk 00:52:02]} {[%emt 00:01:53]} f5 {[%clk 00:20:07]} {[%emt 00:01:05]} 29.
Qe1 {[%clk 00:49:26]} {[%emt 00:03:06]} Nc6 {[%clk 00:20:16]} {[%emt 00:00:21]}
30. Rf2 {[%clk 00:49:24]} {[%emt 00:00:32]} Re8 {[%clk 00:17:45]} {[%emt
00:03:01]} 31. Qd1 {[%clk 00:46:52]} {[%emt 00:03:02]} f6 {[%clk 00:13:13]}
{[%emt 00:05:01]} 32. Qb3 {[%clk 00:44:02]} {[%emt 00:03:21]} e5 {[%clk
00:11:58]} {[%emt 00:01:44]} 33. fxe5 {[%clk 00:44:13]} {[%emt 00:00:20]} Rdxe5
{[%clk 00:05:46]} {[%emt 00:06:41]} 34. Rcf1 {[%clk 00:40:28]} {[%emt
00:04:15]} Re1 {[%clk 00:05:39]} {[%emt 00:00:37]} 35. Qc2 {[%clk 00:39:15]}
{[%emt 00:01:44]} Qd5 {[%clk 00:05:39]} {[%emt 00:00:30]} 36. Qd2 {[%clk
00:39:18]} {[%emt 00:00:27]} Rxf1+ {[%clk 00:04:36]} {[%emt 00:01:33]} 37. Rxf1
{[%clk 00:39:41]} {[%emt 00:00:08]} Re3 {[%clk 00:04:50]} {[%emt 00:00:16]} 38.
Rf4 {[%clk 00:31:05]} {[%emt 00:09:06]} Qb3 {[%clk 00:00:32]} {[%emt 00:04:48]}
39. Bxd4 {[%clk 00:30:02]} {[%emt 00:01:33]} Rxd3 {[%clk 00:00:33]} {[%emt
00:00:29]} 40. Bxf6+ {[%clk 00:29:43]} {[%emt 00:00:49]} Kg8 {[%clk 00:00:56]}
{[%emt 00:00:07]} 41. Qe2 {[%clk 00:28:43]} {[%emt 00:01:30]} Re3 {[%clk
00:21:14]} {[%emt 00:10:12]} 42. Qh5 {[%clk 00:56:55]} {[%emt 00:02:18]} Qb1+
{[%clk 00:04:30]} {[%emt 00:17:15]} 43. Kg2 {[%clk 00:55:51]} {[%emt 00:01:34]}
Qa2+ {[%clk 00:04:38]} {[%emt 00:00:22]} 44. Rf2 {[%clk 00:54:03]} {[%emt
00:02:18]} Qd5+ {[%clk 00:04:28]} {[%emt 00:00:41]} 45. Kh3 {[%clk 00:54:27]}
{[%emt 00:00:06]} Qe6 {[%clk 00:03:39]} {[%emt 00:01:19]} 46. Rxf5 {[%clk
00:53:32]} {[%emt 00:01:25]} Ne5 {[%clk 00:01:27]} {[%emt 00:02:42]} 47. Bxe5
{[%clk 00:53:42]} {[%emt 00:00:20]} Rxe5 {[%clk 00:01:40]} {[%emt 00:00:17]} 48.
Qg4+ {[%clk 00:54:07]} {[%emt 00:00:05]} 1-0